Cogmind - Beta 13 @@@ ROGUE MODE // 2024.07.12 @ 22:58:17 Player: APerTAS Result: Destroyed by B-36 Bruiser with Hammer Performance ------------- Evolutions (1) 500 Regions Visited (3) 600 Robots Destroyed (22) 110 Value Destroyed (435) 435 Prototype IDs (0) 0 Alien Tech Used (0) 0 Bonus (0) 0 TOTAL SCORE: 1645 Bonus ------- None Cogmind --------- Core Integrity 0/400 Matter 300/300 Energy 100/100 System Corruption 0% Temperature Cool (6) Movement Core (50) Location -9/Mines Parts ------- > --- POWER (1) -------- (None) > --- PROPULSION (3) --- (None) > --- UTILITY (3) ------ (None) > --- WEAPON (2) ------- (None) > --- INVENTORY (5) ---- Light Ion Engine Light Treads Light Assault Rifle Improved Light Cannon Mining Laser Peak State ------------ > --- POWER ------------ Light Ion Engine > --- PROPULSION ------- Flight Unit Flight Unit > --- UTILITY ---------- Heat Sink Improved Targeting Computer Improved Targeting Computer > --- WEAPON ----------- Improved Light Cannon > --- INVENTORY -------- Light Ion Engine Power Shielding EM Pulse Gun Light Assault Rifle [Rating: 10] Favorites ----------- Power Light Ion Engine Engine Light Ion Engine Propulsion Light Treads Treads Light Treads Flight Unit Flight Unit Utility Small Storage Unit Device Sensor Array Storage Small Storage Unit Processor Improved Targeting Computer Protection Light Armor Plating Weapon Light Assault Rifle Energy Gun EM Pulse Gun Ballistic Gun Light Assault Rifle Ballistic Cannon Improved Light Cannon Launcher Grenade Launcher Build | -11 -10 -9 -9 ------- Run | Yrd Mat Mat Min Slots Evolved 2 | . . 2 . Power . | . . . . Propulsion 1 | . . 1 . Utility 1 | . . 1 . Weapon . | . . . . Parts Attached 21 | 6 11 4 . Power 3 | 1 2 . . Engine 3 | 1 2 . . Core . | . . . . Reactor . | . . . . Propulsion 4 | 2 2 . . Treads 2 | 2 . . . Leg . | . . . . Wheel . | . . . . Hover . | . . . . Flight 2 | . 2 . . Utility 7 | 1 4 2 . Device 3 | . 3 . . Storage 1 | 1 . . . Processor 2 | . . 2 . Hackware . | . . . . Protection 1 | . 1 . . Artifact . | . . . . Weapon 7 | 2 3 2 . Energy Gun 2 | . 1 1 . Energy Cannon . | . . . . Ballistic Gun 3 | 2 1 . . Ballistic Cannon 1 | . . 1 . Launcher 1 | . 1 . . Special Weapon . | . . . . Impact Weapon . | . . . . Slashing Weapon . | . . . . Piercing Weapon . | . . . . Special Melee Weapon . | . . . . Unidentified Prototypes . | . . . . Parts Lost 6 | . 3 . 3 Power 1 | . 1 . . Propulsion 2 | . . . 2 Utility 1 | . 1 . . Weapon 2 | . 1 . 1 Highest Loss Streak 3 | . 1 . 3 To Critical Strikes . | . . . . Average Slot Usage (%) 90 | . 94 67 41 Engine 13 | . 13 11 6 Treads 24 | . 27 . . Flight 2 | . . 22 8 Device 5 | . 5 12 6 Storage 12 | . 13 . . Processor 1 | . . 11 13 Protection 5 | . 6 . . Ballistic Gun 18 | . 21 . . Launcher 3 | . 4 . . Naked Turns 23 | . . . 23 Heaviest Build 13 | 10 13 8 6 Greatest Support 40 | 40 40 8 8 Greatest Overweight (x) . | . . . . Average Overweight (x) . | . . . . Largest Inventory Capacity 8 | 8 8 5 5 Average Capacity 7 | 5 7 5 5 Most Carried 8 | 4 8 5 5 Average Carried 4 | 1 4 4 5 Final Capacity 8 | 8 5 5 5 Final Carried 5 | 2 3 5 5 Class Distribution -------------------- 91% | Mutant 8% | Scavenger-Mutant Dominant Class ---------------- Mutant | -10/Materials Mutant | -9/Materials Mutant | -9/Mines Resources | -11 -10 -9 -9 ----------- Run | Yrd Mat Mat Min Matter Collected 543 | 239 257 47 . Remotely . | . . . . Salvage Created 504 | . 243 36 225 Parts 43 | . 28 1 14 Haulers Intercepted . | . . . . Recyclers Shooed . | . . . . Parts Field Recycled . | . . . . Retrieved Matter . | . . . . Parts Self-Destructed . | . . . . Prevented . | . . . . Kills | -11 -10 -9 -9 ------- Run | Yrd Mat Mat Min Combat Hostiles Destroyed 13 | . 10 1 2 Guns 9 | . 8 . 1 Cannons 1 | . . 1 . AOE 3 | . 2 . 1 Classes Destroyed 7 | . 4 1 2 Worker 4 | . 2 . 2 Builder 1 | . . . 1 Recycler 1 | . . . 1 Watcher 3 | . 3 . . Swarmer 6 | . 6 . . Grunt 6 | . 4 . 2 Sentry 1 | . . 1 . Best Kill Streak 6 | . 6 1 6 Combat Bots Only 4 | . 4 1 2 Max Kills in Single Turn 5 | . 2 1 5 Gunslinging . | . . . . Exploded 1 | . 1 . 1 Melee . | . . . . Uniques/NPCs Destroyed . | . . . . Combat | -11 -10 -9 -9 -------- Run | Yrd Mat Mat Min Hostile Shots Fired 117 | . 66 4 47 Missed 37 | . 22 1 14 Damage Taken 1016 | . 485 45 486 Core 477 | . 60 30 387 Absorbed by Shields . | . . . . Core Remaining (%) 88 | 100 76 . . Volleys Fired 50 | . 36 3 11 Largest 2 | . 2 1 1 Hottest 50 | . 50 39 40 Shots Fired 78 | . 64 3 11 Gun 66 | . 55 . 11 Cannon 3 | . . 3 . Launcher 9 | . 9 . . Special . | . . . . Kinetic 58 | . 55 3 . Thermal . | . . . . Explosive 9 | . 9 . . Electromagnetic 11 | . . . 11 Robot Hit Streak 9 | . 5 5 9 Robot Miss Streak 10 | . 10 . 1 Penetration Max . | . . . . Secondary Targets . | . . . . Shots Hit Robots 41 | . 28 3 10 Core Hits 34 | . 24 2 8 Critical Kills . | . . . . Critical Parts Destroyed 1 | . 1 . . Critical Strikes 3 | . 1 1 1 Destroy 1 | . 1 . . Blast 1 | . . 1 . Corrupt 1 | . . . 1 Melee Attacks . | . . . . Impact . | . . . . Slashing . | . . . . Piercing . | . . . . Sneak Attacks . | . . . . Combat Hostiles . | . . . . Follow-up Attacks . | . . . . Damage Inflicted 974 | . 650 62 262 Guns 374 | . 235 . 139 Cannons 62 | . . 62 . Explosions 538 | . 415 . 123 Melee . | . . . . Ramming . | . . . . Kinetic 297 | . 235 62 . Thermal 123 | . . . 123 Explosive 415 | . 415 . . Electromagnetic 139 | . . . 139 Impact . | . . . . Slashing . | . . . . Piercing . | . . . . Highest Corruption . | . . . . Average Corruption . | . . . . Corruption Purged . | . . . . Corruption Blocked . | . . . . Overload Shots . | . . . . Overflow Damage 44 | . 21 . 23 Projectiles . | . . . . Explosions 44 | . 21 . 23 Melee . | . . . . Knockbacks . | . . . . Impact . | . . . . Kinetic . | . . . . Secondary . | . . . . Self-Inflicted Damage 110 | . 86 . 24 Shots 4 | . 3 . 1 Rammed . | . . . . Targets Rammed . | . . . . Kicked . | . . . . Crushed . | . . . . Highest Temperature 25 | . 25 . . Average Temperature 9 | . 9 . . Received Heat Transfer 285 | . 90 18 177 Siege Activations . | . . . . Robots Corrupted . | . . . . Combat Hostiles . | . . . . Parts Fried 1 | . . . 1 Impact Corruptions . | . . . . Robots Melted . | . . . . Combat Hostiles . | . . . . Parts Melted . | . . . . Heat Transferred 200 | . . . 200 Parts Sabotaged . | . . . . Parts Stolen . | . . . . Parts Stripped . | . . . . Power Chain Reactions 1 | . . . 1 Alert | -11 -10 -9 -9 ------- Run | Yrd Mat Mat Min Peak Influence 252 | . 252 82 74 Initial 31 | . . 22 31 Average 107 | . 129 45 54 Maximum Alert Level 1 | . 1 . . Low Security (%) 75 | 100 69 100 100 Level 1 24 | . 30 . . Level 2 . | . . . . Level 3 . | . . . . Level 4 . | . . . . Level 5 . | . . . . High Security . | . . . . Max Security . | . . . . Squads Dispatched 3 | . 3 . . Investigation 2 | . 2 . . Extermination . | . . . . Reinforcement 1 | . 1 . . Assault . | . . . . Garrison . | . . . . Intercept . | . . . . Searches Triggered . | . . . . Construction Impeded . | . . . . Haulers Reinforced . | . . . . Active Scanning Responses . | . . . . Cargo Convoy Interrupts . | . . . . Stealth | -11 -10 -9 -9 --------- Run | Yrd Mat Mat Min Distress Signals 1 | . 1 . . Communications Jammed . | . . . . Distress Signals . | . . . . Times Spotted 23 | . 16 2 5 Peak Tracking Total 5 | . 5 2 4 Tactical Retreats 1 | . 1 . . Traps | -11 -10 -9 -9 ------- Run | Yrd Mat Mat Min Traps Triggered 1 | . 1 . . Indirectly . | . . . . Trap Hack Attempts . | . . . . Triggered . | . . . . Disarmed . | . . . . Reprogrammed . | . . . . Reused . | . . . . Traps Extracted . | . . . . Installed . | . . . . Triggered . | . . . . Machines | -11 -10 -9 -9 ---------- Run | Yrd Mat Mat Min Machines Disabled 5 | . 5 . . Max in Single Turn 2 | . 2 . . Machines Repaired . | . . . . Machines Dismantled . | . . . . Machines Sabotaged . | . . . . Overloaded Fab Kills . | . . . . Hacking | -11 -10 -9 -9 --------- Run | Yrd Mat Mat Min Machines Accessed 3 | . 3 . . Terminals 2 | . 2 . . Fabricators . | . . . . Repair Stations . | . . . . Recycling Units 1 | . 1 . . Scanalyzers . | . . . . Garrison Access . | . . . . Total Hacks 12 | . 12 . . Successful 4 | . 4 . . Failed 8 | . 8 . . Catastrophic 2 | . 2 . . Database Lockouts . | . . . . Manual 11 | . 11 . . Terminals 6 | . 6 . . Fabricators . | . . . . Repair Stations . | . . . . Recycling Units 6 | . 6 . . Scanalyzers . | . . . . Garrison Access . | . . . . Terminal Hacks 2 | . 2 . . Record 2 | . 2 . . Fabricator Hacks . | . . . . Repair Station Hacks . | . . . . Recycling Unit Hacks . | . . . . Scanalyzer . | . . . . Garrison Access Hacks . | . . . . Unauthorized Hacks 2 | . 2 . . Terminals . | . . . . Fabricators . | . . . . Repair Stations . | . . . . Recycling Units 2 | . 2 . . Reject 1 | . 1 . . Mask 1 | . 1 . . Scanalyzers . | . . . . Garrison Access . | . . . . Data Cores Recovered . | . . . . Used . | . . . . Hacking Detections 3 | . 3 . . Full Trace Events 2 | . 2 . . Feedback Events . | . . . . Feedback Blocked . | . . . . Robot Schematics Acquired . | . . . . Robots Built . | . . . . Authchips . | . . . . Time . | . . . . Total Robot Build Rating . | . . . . Part Schematics Acquired . | . . . . Parts Built . | . . . . Authchips . | . . . . Time . | . . . . Total Part Build Rating . | . . . . Parts Repaired . | . . . . Time . | . . . . Parts Recycled . | . . . . Recycled Matter . | . . . . Retrieved Matter . | . . . . Retrieved Components . | . . . . Parts Scanalyzed . | . . . . Part Schematics Acquired . | . . . . Parts Damaged . | . . . . Bothacking | -11 -10 -9 -9 ------------ Run | Yrd Mat Mat Min Used RIF Installer . | . . . . Robots Hacked . | . . . . Non-combat . | . . . . Combat . | . . . . Robot Hacks Applied . | . . . . Relay Couplers Released . | . . . . Fabnet Peak Effective % . | . . . . Robots Rewired . | . . . . Allies Hacked . | . . . . Hacks Repelled . | . . . . Allies | -11 -10 -9 -9 -------- Run | Yrd Mat Mat Min Total Allies . | . . . . Largest Group . | . . . . Highest-Rated Group . | . . . . Highest-Rated Ally . | . . . . Total Orders . | . . . . Ally Attacks . | . . . . Total Damage . | . . . . Kills . | . . . . Allies Corrupted . | . . . . Allies Melted . | . . . . Intel | -11 -10 -9 -9 ------- Run | Yrd Mat Mat Min Robot Analysis Total . | . . . . Derelict Logs Recovered . | . . . . Drone Launches . | . . . . Drone Recoveries . | . . . . Exploration | -11 -10 -9 -9 ------------- Run | Yrd Mat Mat Min Turns Passed 1044 | 110 824 57 53 Spaces Moved 643 | 65 455 104 19 Core 6 | 6 . . . Treads 499 | 59 440 . . Legs . | . . . . Wheels . | . . . . Hover . | . . . . Flight 138 | . 15 104 19 Fastest Speed 37 | 50 37 37 37 Average Speed 132 | 149 155 37 37 Slowest Speed 160 | 160 160 37 37 Overloaded Moves . | . . . . Propulsion Burnouts . | . . . . Robots Hopped 2 | . . 2 . Cave-ins Triggered . | . . . . Exploration Rate (%) 19 | 3 61 9 6 Regions Visited 3 Branch Regions 1 Pre-discovered Areas . | . . . . Known Exits Taken . | . . . . Unknown Exits Taken 3 | 1 1 1 . Scrap Searched . | . . . . Spaces Dug . | . . . . Terrain Destroyed 40 | . 37 . 3 Melee . | . . . . Projectile . | . . . . AOE 40 | . 37 . 3 Terrain Rammed . | . . . . Walls Destroyed . | . . . . Machines Disabled . | . . . . Actions | -11 -10 -9 -9 --------- Run | Yrd Mat Mat Min Total 765 | 78 516 117 54 Wait 26 | . 1 1 24 Move 636 | 64 454 99 19 Hop 2 | . . 2 . Pick Up 22 | 8 9 5 . Fast Attach . | . . . . Attach 16 | 6 7 3 . Detach 1 | . . 1 . Swap 5 | . 4 1 . Drop 7 | . 5 2 . Fire 50 | . 36 3 11 Melee . | . . . . Ram . | . . . . Kick . | . . . . Crush . | . . . . Escape Stasis . | . . . . Rewire . | . . . . Trap . | . . . . Miscellaneous . | . . . . Route ------- -11/Scrapyard -10/Materials (discovered 3 exits: *Mat x3) -9/Materials -9/Mines (discovered 1 exit: [*Mat]) History --------- Turn | Location | Event 18 | -11/Scrapyard | Discovered new exit (range 15) 111 | -11/Scrapyard | Entered Materials 298 | -10/Materials | Discovered new exit (range 16) 327 | -10/Materials | Build established: Mutant 374 | -10/Materials | Discovered new exit (range 14) 855 | -10/Materials | Discovered new exit (range 16) 935 | -10/Materials | Entered another Materials area 935 | -9/Materials | Evolved 2 slots: Propulsion x1, Utility x1 983 | -9/Materials | Discovered new exit (range 8) 992 | -9/Materials | Entered Mines 999 | -9/Mines | Discovered new exit (range 5) 1022 | -9/Mines | Released all parts (4) 1030 | -9/Mines | Core integrity fell below 50% 1040 | -9/Mines | Core integrity fell below 20% 1045 | -9/Mines | Destroyed by B-36 Bruiser with Hammer Last Messages --------------- Released Heat Sink. Released Lgt. Ion Engine. Released Imp. Targeting Computer. U-05 Engineer lays Concrete. R-06 Scavenger collects Corrupted Heat Sink. U-05 Engineer lays Concrete. R-06 Scavenger collects Welding Torch. U-05 Engineer lays Concrete. R-06 Scavenger collects Wheel. U-05 Engineer lays Concrete. R-06 Scavenger collects Corrupted Lgt. Nuclear Core. U-05 Engineer lays Concrete. U-05 Engineer builds a Wall. U-05 Engineer lays Concrete. R-06 Scavenger collects Terrain Scan Processor. Knocked back. U-05 Engineer lays Concrete. U-05 Engineer builds a Wall. R-06 Scavenger collects Lgt. Ion Engine. Map ----- +----------------------------------------------------+ | ????????????????????????????????????? | | ????????????????????????????????????? | | ????????????????????????????????????? | | ????????????????????????????????????? | | ????????????????????????????????????? | | ????????????????????????????????????? | | ????????????????????????????????????? | | ????????????????????????????????????? | | ????????????????????????????????????? | | ????????????????????????????????????? | | ????????????????????????????????????? | | ????????########????????????????????? | | ????????# #????????????????????? | | ????????# #????????????????????? | | ????????# ##########???????????? | | ????????# #???????????? | | ????????# ######## #???????????? | | ????????########??????# #???????????? | | ??????????????????????# #???????????? | | ??????????????????????# #???????????? | | ??????????????????????# #???????#???? | | ??????????????????????# #????? #???? | | ??????????????????????# #???? #???? | | ??????????????????????# #### #???? | | ??????????????????????#*!##r % #???? | | ??????????????????????#%b@ #???? | | ?????????????????# %gruu %g #???? | | ?????????????????# ### [ ! ##???? | | ?????????????????#????## ##????? | | ???????????????????????## #?????? | | ????????????????????????#### #?????? | | ???????????????????????????? #?????? | | ????????????????????????????? #?????? | | ????????????????????????????? #?????? | | ?????????????????????????????? ?????? | | ?????????????????????????????? ?????? | | ??????????????????????????????? ????? | | ???????????????????????????????#????? | | ????????????????????????????????????? | | ????????????????????????????????????? | | ????????????????????????????????????? | | ????????????????????????????????????? | | ????????????????????????????????????? | | ????????????????????????????????????? | | ????????????????????????????????????? | | ????????????????????????????????????? | | ????????????????????????????????????? | | ????????????????????????????????????? | | ????????????????????????????????????? | | ????????????????????????????????????? | +----------------------------------------------------+ Best States ------------- Heat Dissipation 38 Energy Generation 10 Energy Capacity 125 Matter Stores 300 Matter Capacity 300 Sight Range 16 Robot Scan Range 14 Terrain Scan Density 10 Armor Coverage 150 Evasion (%) 62 Targeting Accuracy 12 Recoil Reduction 2 Item Schematics ----------------- None Robot Schematics ------------------ None Fabricated ------------ Nothing Alien Tech Used ----------------- None Achievements -------------- None Challenges ------------ None Game ------ Seed CatalystAutogunDeconstructor Manual? 0 Play Time 00:11:24 Cumulative 11.5 hours Start 2024.07.12 @ 22:47:28 End 2024.07.12 @ 22:58:17 Sessions 1 Manual Loads 0 Difficulty Rogue Special Mode None Game No. 32 Rogue 32 Adventurer 0 Explorer 0 Win Type - Total 0 Types 0/0/0/0/0/0/0/0/0 Lore% 18 Gallery% 15 Achievement% 16 Wizard Run 0 Options --------- Layout 1 ASCII 0 Keyboard 0 Movement Arrows Keybinds 0 Fullscreen 1 Font 28/Dina Map View 50x43 Zoom Use 0% Tactical HUD 0 Map Filters NONE Filters NONE Steam 1 RUN: e5e78880-4c1c-4c96-9530-ec96a6043dc5